bitfinex/quotes_ETHUSD_20220202
["timestamp","ask_amount","ask_price","bid_price","bid_amount"]
[1643802352826,0.18344342,2767.6,2766.6,1.94059976]
[1643802353233,1.40339009,2767.6,2766.6,1.94059976]
[1643802353431,1.40339009,2767.6,2766.6,1.89774011]
[1643802353630,1.40339009,2767.6,2766.6,1.89820022]
[1643802354030,1.05483832,2767.6,2766.6,1.89820022]
[1643802354678,0.18344342,2767.6,2766.6,1.89820022]
[1643802355080,0.00274342,2767.6,2766.6,1.89820022]
[1643802355281,0.1806,2767.7,2766.6,1.89820022]
[1643802355681,0.1806,2767.7,2767.2,0.88668756]
[1643802355890,0.18064659,2768.1,2766.6,1.89820022]
[1643802356080,0.00274359,2767.6,2766.6,1.89820022]
[1643802356285,0.00274359,2767.6,2766.7,0.1806]
[1643802356481,0.00274359,2767.6,2766.9,0.90335]
[1643802356681,0.18334359,2767.8,2766.9,0.90335]
[1643802356889,0.00274359,2767.8,2767.1,0.8908627]
[1643802357082,0.00274359,2767.8,2766.9,0.90335]
[1643802357283,0.00274359,2767.8,2766.7,0.1806]
[1643802357922,0.00274359,2767.8,2766.7,0.4806]
[1643802358124,0.00274359,2767.8,2766.8,1.93340857]
[1643802358431,0.18334359,2767.8,2766.7,0.93801318]
[1643802358825,0.86625915,2767.5,2766.7,0.93801318]
[1643802359125,0.00274359,2767.4,2766.7,0.93801318]
[1643802359525,0.00274359,2767.7,2766.8,1.89093273]
[1643802359728,0.00274359,2767.7,2766.7,0.93801318]
[1643802360126,0.00274359,2767.7,2766.8,5.37105751]
[1643802360325,0.9272324,2767.7,2766.8,3.5]
[1643802361329,0.00274359,2767.7,2766.8,3.5]
[1643802361529,1.53548487,2767.8,2766.8,3.8370089]
[1643802362171,1.53548487,2767.8,2766.8,5.69566485]
[1643802362571,1.53548487,2767.8,2766.8,3.8370089]
[1643802362772,1.53548487,2767.8,2767.3,0.76533377]
[1643802362978,1.53274128,2767.8,2767.3,0.76533377]
[1643802363177,1.53274128,2767.7,2767.3,0.76533377]
[1643802363376,1.53274128,2767.6,2767.3,0.76533377]
[1643802363583,0.18334359,2768.0,2767.3,0.76533377]
[1643802363779,1.53272067,2767.9,2767.3,0.76533377]
[1643802364476,1.53272067,2767.9,2766.9,1.87734433]
[1643802364676,0.00274359,2767.8,2766.9,1.87734433]
[1643802365080,0.00274359,2767.8,2766.9,2.78074433]
[1643802365730,0.00274359,2767.8,2767.3,1.23094758]
[1643802365930,0.00274359,2768.0,2767.4,2.28864887]
[1643802366136,2.63698195,2768.5,2767.4,2.46924887]
[1643802366328,1.53235805,2768.4,2767.4,2.46924887]
[1643802366928,1.53235805,2768.4,2767.8,0.90104954]
[1643802368233,1.53235805,2768.4,2767.7,0.35572239]
[1643802368432,1.53235805,2768.4,2767.4,2.28864887]
[1643802368640,1.53235805,2768.3,2767.4,1.93088803]
[1643802368836,2.21737388,2768.5,2767.4,1.93088803]
[1643802369035,1.53235805,2768.4,2767.4,1.93088803]
[1643802369270,1.53235805,2768.3,2767.7,0.78529571]
[1643802369669,1.53235805,2768.2,2767.7,0.78529571]
[1643802369870,1.53235805,2768.1,2767.7,0.78529571]
[1643802370070,1.53235805,2768.0,2767.7,0.78529571]
[1643802370271,1.53235805,2767.9,2767.7,0.78529571]
[1643802370473,1.53235805,2767.8,2767.7,0.78529571]
[1643802370672,1.53235805,2768.3,2767.6,0.42751545]
[1643802370872,1.53235805,2768.2,2767.7,0.67248707]
[1643802371072,1.53235805,2768.1,2767.7,0.67248707]
[1643802371283,1.53235805,2768.0,2767.7,0.67248707]
[1643802371471,1.53510123,2768.3,2767.7,2.54558902]
[1643802371675,1.53510123,2768.3,2767.8,2.00598802]
[1643802371676,1.53224245,2768.2,2767.8,2.00598802]
[1643802371873,1.53224245,2768.2,2767.8,0.3]
[1643802372073,1.53224245,2768.1,2767.8,0.3]
[1643802372273,0.00274318,2768.5,2767.9,0.90307]
[1643802372472,1.53224245,2768.7,2768.1,0.32624941]
[1643802372473,0.00274318,2768.7,2768.1,0.32624941]
[1643802372673,1.53226396,2768.6,2768.1,0.32624941]
[1643802372922,0.68775901,2768.7,2767.9,1.20307]
[1643802373527,0.68775901,2768.7,2768.2,0.77076958]
[1643802373727,0.68775901,2768.7,2767.9,1.20307]
[1643802374226,0.68775901,2768.7,2768.1,0.35770601]
[1643802374829,0.68775901,2768.7,2768.0,0.72247401]
[1643802375229,2.22002297,2768.7,2768.0,0.72247401]
[1643802375428,1.53226396,2768.6,2768.0,0.72247401]
[1643802375727,1.53226396,2768.5,2768.0,2.57660176]
[1643802375927,1.53226396,2768.4,2768.3,0.38363623]
[1643802376126,0.68501583,2768.7,2768.3,0.38363623]
[1643802376326,2.21727979,2768.7,2768.0,0.72247401]
[1643802376532,1.53226396,2768.6,2768.0,0.72247401]
[1643802376775,1.53226396,2768.5,2768.0,0.72247401]
[1643802376975,1.53226396,2768.4,2768.0,2.55825652]
[1643802377176,1.53226396,2768.3,2768.0,2.55996483]
[1643802377376,1.53226396,2768.2,2768.0,0.72247401]
[1643802377576,1.53226396,2768.1,2767.9,1.20307]
[1643802377779,1.53226396,2768.0,2767.9,0.6]
[1643802377988,0.68775901,2768.6,2767.9,0.6691473]
[1643802378182,0.68501583,2768.6,2767.9,0.3]
[1643802378386,0.68501583,2768.6,2767.7,0.3]
[1643802378585,0.68501583,2768.6,2767.6,0.1806]
[1643802378786,0.8188804,2768.2,2767.6,0.1806]
[1643802378985,1.53226396,2768.1,2767.6,0.1806]
[1643802379385,1.53500714,2768.1,2767.6,0.1806]
[1643802379584,1.53226396,2768.0,2767.6,0.1806]
[1643802379784,1.53226396,2767.9,2767.6,0.1806]
[1643802379984,0.68501583,2768.5,2767.6,0.1806]
[1643802379985,1.53226396,2767.8,2767.6,0.1806]
[1643802380185,0.18334318,2768.4,2767.6,0.1806]
[1643802380433,2.21734512,2768.3,2767.6,0.1806]
[1643802380637,0.68501583,2768.0,2767.6,0.1806]
[1643802380829,1.20801583,2768.0,2766.9,0.25]
[1643802381029,1.20801583,2768.0,2766.7,0.90342]
[1643802381030,1.71292929,2767.9,2766.7,0.90342]
[1643802381231,1.53232929,2767.8,2766.7,0.90342]
[1643802381434,1.53232929,2767.8,2766.9,0.86055983]
[1643802381435,0.93959138,2767.7,2766.9,0.86055983]
[1643802381631,1.97107167,2767.8,2766.9,0.86055983]
[1643802381632,1.53232929,2767.6,2766.9,0.86055983]
[1643802381836,1.53232929,2767.5,2766.9,0.86055983]
[1643802382031,1.53232929,2767.4,2766.9,0.86055983]
[1643802382232,0.00274318,2767.6,2766.9,0.86055983]
[1643802382431,1.53232929,2767.3,2766.9,0.86055983]
[1643802382633,1.53232929,2767.2,2766.9,0.86055983]
[1643802382832,0.87183669,2767.8,2766.9,0.86055983]
[1643802383041,1.53255506,2767.7,2766.9,0.86055983]
[1643802383237,1.53529824,2767.6,2766.9,0.86055983]
[1643802383437,1.53255506,2767.5,2766.9,0.86055983]
[1643802383635,1.53255506,2767.4,2766.9,0.86055983]
[1643802383839,0.00274318,2767.8,2767.0,2.73394851]
[1643802384280,0.00274318,2767.8,2767.0,2.74692374]
[1643802384484,0.00274318,2767.8,2767.0,0.90337]
[1643802386082,0.00274318,2767.8,2766.9,0.86055983]
[1643802387588,1.53516414,2767.8,2766.9,0.86055983]
[1643802387787,1.53516414,2767.8,2766.8,0.1806]
[1643802388036,1.53516414,2767.8,2766.7,1.72118231]
[1643802388238,2.22017997,2767.8,2766.7,1.38402]
[1643802388637,2.22017997,2767.8,2766.8,1.84942867]
[1643802388841,1.53516414,2767.8,2766.9,0.9034]
[1643802389139,1.53516414,2767.8,2767.1,0.98994815]
[1643802389140,1.53242096,2767.7,2767.1,0.98994815]
[1643802389339,1.53516414,2767.8,2767.1,0.68994815]
[1643802389542,1.53242096,2767.7,2767.1,0.68994815]
[1643802389737,0.86835901,2768.0,2767.1,0.68994815]
[1643802389738,1.53242096,2767.6,2767.1,0.68994815]
[1643802389938,1.53242096,2767.5,2767.1,0.68994815]
[1643802390138,0.85116338,2767.9,2767.0,2.4806]
[1643802390340,1.53516414,2767.8,2767.0,2.4806]
[1643802391241,1.53516414,2767.8,2767.0,0.4806]
[1643802391439,1.53516414,2767.8,2767.0,0.3]
[1643802391673,1.53516414,2767.8,2766.9,0.1806]
[1643802392081,2.22017997,2767.8,2766.9,0.1806]
[1643802392874,2.22017997,2767.8,2766.8,4.04632189]
[1643802393279,2.22017997,2767.8,2766.9,0.87882286]
[1643802394483,1.53242096,2767.7,2766.9,0.87882286]
[1643802394784,1.53516414,2767.6,2766.9,1.17882286]
[1643802395080,1.53242096,2767.5,2766.9,1.17882286]
[1643802395293,1.53242096,2767.4,2766.9,1.17882286]
[1643802395525,1.53242096,2767.3,2766.9,1.17882286]
[1643802395723,1.53242096,2767.2,2766.9,0.87882286]
[1643802396032,1.53242096,2767.1,2766.9,0.87882286]
[1643802396227,1.20269565,2767.8,2766.9,0.87882286]
[1643802396428,1.5324739,2767.7,2766.7,2.93977955]
[1643802396629,0.00274318,2767.6,2766.7,2.95054044]
[1643802396829,0.00274318,2767.6,2766.7,2.76994044]
[1643802397434,0.00274318,2767.6,2766.7,1.59449882]
[1643802397631,1.53521708,2767.7,2766.7,1.59449882]
[1643802397831,0.71604324,2767.4,2766.6,0.1806]
[1643802398030,1.5324739,2767.3,2766.6,0.1806]
[1643802398255,1.53094956,2767.3,2766.6,0.1806]
[1643802398833,1.53094956,2767.3,2766.6,0.54360822]
[1643802399280,0.00274318,2767.6,2766.7,1.85756676]
[1643802400084,0.76827319,2767.6,2766.7,2.57756592]
[1643802401679,0.00274318,2767.6,2766.8,0.90343]
[1643802401980,0.00274318,2767.6,2766.9,1.89759488]
[1643802402180,0.18334318,2767.8,2766.9,1.89759488]
[1643802403227,0.00274318,2767.8,2766.9,1.89759488]
[1643802404229,0.00274318,2767.8,2767.2,0.80538268]
[1643802404429,0.00274318,2767.8,2767.3,1.87128898]
[1643802404632,0.00274318,2767.8,2767.0,2.25177]
[1643802404830,0.00274318,2767.8,2767.1,2.0]
[1643802405029,0.00274318,2768.0,2767.1,2.0]
[1643802405231,0.00274318,2768.0,2767.1,2.3]
[1643802405437,0.00274318,2768.0,2767.1,2.0]
[1643802405632,0.74007634,2768.0,2767.2,0.84334719]
[1643802406231,0.00274318,2767.9,2767.2,0.84334719]
[1643802406671,0.00274318,2767.9,2767.2,1.21461539]
[1643802406969,0.00274318,2767.9,2767.3,1.85522388]
[1643802408376,0.00274318,2767.9,2767.2,0.90329]
[1643802408778,0.00274318,2767.9,2767.3,1.82747252]
[1643802409393,0.74007634,2768.0,2767.3,2.204928]
[1643802409980,0.74281952,2768.0,2767.3,2.204928]
[1643802410427,0.74281952,2768.0,2767.3,1.82747252]
[1643802411232,0.00274318,2768.0,2767.3,1.82747252]
[1643802411432,0.00274318,2768.0,2767.6,0.35249078]
[1643802411633,0.18334318,2768.1,2767.3,1.82747252]
[1643802411833,0.00274318,2768.1,2767.3,1.82747252]
[1643802412434,0.71866048,2768.0,2767.3,1.85527767]
[1643802412833,0.71866048,2768.0,2767.4,0.34445005]
[1643802413245,0.71866048,2768.0,2767.2,0.90329]
[1643802413540,0.00274318,2767.9,2767.3,1.88205607]
[1643802413742,0.00274318,2767.9,2767.0,1.8626121]
[1643802413941,0.1806,2768.1,2767.0,1.8626121]
[1643802413942,0.68775901,2768.1,2767.1,1.88855869]
[1643802414378,0.68501583,2768.0,2767.1,1.88855869]
[1643802414575,0.76348112,2767.9,2767.1,1.83153153]
[1643802415477,0.76348112,2767.9,2767.0,2.30721888]
[1643802415677,0.76348112,2767.9,2767.0,0.9592121]
[1643802416680,0.76348112,2767.9,2767.0,0.7786121]
[1643802416877,0.76348112,2767.9,2766.9,4.2827]
[1643802417082,1.28648112,2767.9,2766.9,4.2827]
[1643802417281,0.68501583,2767.8,2766.9,4.2827]
[1643802417479,1.38861583,2767.8,2766.9,4.2827]
[1643802418127,1.53252552,2767.7,2766.9,4.2827]
[1643802418533,1.53252552,2767.7,2766.9,6.11062925]
[1643802418729,1.53169948,2767.7,2766.9,6.11062925]
[1643802419531,0.00274318,2767.9,2766.9,6.11062925]
[1643802419730,1.60469992,2767.9,2766.9,6.11062925]
[1643802421037,0.68501583,2767.8,2766.9,6.11062925]
[1643802421233,0.68501583,2767.8,2767.1,0.8284379]
[1643802421435,0.00274318,2767.9,2767.1,0.8284379]
[1643802421679,0.00274318,2767.9,2767.2,1.91835564]
[1643802421680,0.68775901,2767.9,2767.2,1.91835564]
[1643802421881,0.68775901,2767.9,2767.1,0.8284379]
[1643802422479,0.68775901,2767.9,2767.2,0.43705876]
[1643802423784,0.68501583,2767.8,2767.2,2.31266669]
[1643802424285,0.00274318,2767.9,2767.2,2.31266669]
[1643802425286,0.00274318,2768.1,2767.7,0.91035404]
[1643802425523,0.00274318,2768.1,2767.2,3.21600669]
[1643802426726,0.00274318,2768.1,2767.7,0.76134241]
[1643802426928,0.68501583,2768.2,2767.7,0.76134241]
[1643802427128,0.68501583,2768.1,2767.7,0.76134241]
[1643802427929,0.68501583,2768.2,2767.4,1.9104903]
[1643802428130,0.68775901,2768.1,2767.4,1.9104903]
[1643802428330,0.00274318,2768.1,2767.4,1.9104903]
[1643802428531,0.00274318,2768.1,2767.3,1.247]
[1643802428933,0.00274318,2768.1,2767.4,2.0]
[1643802429181,0.68501583,2768.3,2767.5,0.1806]
[1643802429182,0.00274318,2768.3,2767.5,0.1806]
[1643802429378,0.00274318,2768.3,2767.6,0.3]
[1643802429877,0.00274318,2768.5,2767.6,0.3]
[1643802430077,0.00274318,2768.5,2768.0,1.22702369]
[1643802430277,0.00274318,2768.5,2768.0,2.13011369]
[1643802430478,0.00274318,2768.6,2768.0,2.13011369]
[1643802430679,0.00274318,2768.6,2768.1,2.0]
[1643802430979,0.00274318,2768.6,2768.1,0.7036]
[1643802431177,0.00274318,2768.7,2768.1,0.7036]
[1643802431482,0.00274318,2768.7,2768.5,0.36845294]
[1643802431685,0.04406507,2768.9,2768.5,1.2068935]
[1643802432076,0.04075347,2768.8,2768.2,0.903]
[1643802432476,0.04018504,2768.7,2768.2,0.903]
[1643802433141,0.04018504,2768.7,2768.3,1.8485693]
[1643802433740,0.04018504,2768.7,2768.4,0.36994281]
[1643802433942,0.04018504,2768.7,2768.5,1.83664825]
[1643802434340,0.04018504,2768.7,2768.4,0.36994281]
[1643802436685,0.04018504,2768.7,2768.4,1.27289281]
[1643802437679,0.04018504,2768.7,2768.5,1.80564]
[1643802438285,0.00274318,2769.3,2768.5,6.45564]
[1643802438485,0.00274318,2769.3,2768.6,0.523]
[1643802438687,0.00274318,2769.5,2768.8,1.81765397]
[1643802438888,5.6646,2770.3,2769.0,6.55]
[1643802439092,0.68411397,2770.1,2770.0,0.0124745]
[1643802439293,0.1805,2770.7,2770.0,1.0644745]
[1643802439488,0.1804,2770.8,2770.0,1.052]
[1643802439688,0.86451397,2770.9,2770.0,1.052]
[1643802440530,0.1804,2770.9,2770.3,0.70290734]
[1643802441536,0.1,2771.0,2770.3,0.70290734]
[1643802441735,0.1,2771.0,2770.3,0.90232]
[1643802442734,0.1,2771.0,2770.6,0.7593189]
[1643802443136,0.1,2771.0,2770.3,0.90232]
[1643802443338,0.1,2771.0,2770.2,2.69410832]
[1643802443542,0.1,2771.0,2770.1,0.1804]
[1643802443841,0.1804,2770.9,2769.8,1.3892]
[1643802444039,0.1804,2770.9,2769.8,1.2088]
[1643802444286,0.7768679,2770.5,2769.8,1.2088]
[1643802444588,0.7768679,2770.5,2770.0,0.32793622]
[1643802444983,0.7768679,2770.5,2769.6,1.06047819]
[1643802446084,0.7768679,2770.5,2769.6,0.88007819]
[1643802446284,0.7768679,2770.5,2769.5,3.6341]
[1643802446487,0.7768679,2770.5,2769.3,0.1804]
[1643802446689,0.1804,2770.4,2769.2,1.1255]
[1643802447294,0.78273286,2770.0,2769.1,2.34946784]
[1643802447491,0.78273286,2770.0,2769.6,0.43235079]
[1643802447689,0.78273286,2770.0,2769.1,1.16826784]
[1643802447935,0.78273286,2770.0,2769.1,0.73786784]
[1643802448735,1.1804,2770.3,2769.4,0.4455109]
[1643802449236,0.1804,2770.3,2769.4,0.4455109]
[1643802449836,0.1804,2770.3,2769.1,0.73786784]
[1643802449837,0.94296393,2769.9,2769.1,0.73786784]
[1643802450035,0.94296393,2769.9,2768.9,13.7614]
[1643802450233,0.94296393,2769.9,2768.9,10.4823]
[1643802450431,1.1804,2770.3,2768.9,10.4823]
[1643802450831,0.1804,2770.3,2768.9,10.4823]
[1643802451033,0.1804,2770.3,2769.3,0.39751556]
[1643802451682,0.79576575,2769.9,2769.0,0.74483411]
[1643802451883,0.79576575,2769.9,2768.9,7.4001]
[1643802452304,0.79576575,2769.9,2768.8,0.1804]
[1643802452489,1.6062841,2769.8,2768.7,0.1804]
[1643802452786,1.6062841,2769.8,2768.8,0.38681345]
[1643802452787,0.90302,2769.4,2768.8,0.38681345]
[1643802452986,1.59733941,2769.4,2768.5,3.35046969]
[1643802453186,1.59733941,2769.4,2768.5,2.92006969]
[1643802453386,1.59733941,2769.4,2768.5,0.92006969]
[1643802453586,2.50036001,2769.4,2768.0,2.1804]
[1643802453986,2.50036001,2769.4,2768.3,0.33384255]
[1643802454189,0.90309,2769.1,2768.4,0.1804]
[1643802454387,0.90309,2769.1,2768.3,0.33384255]
[1643802454888,0.0027501,2769.0,2768.3,0.33384255]
[1643802455533,0.0027501,2769.2,2768.3,0.33384255]
[1643802455734,0.0027501,2769.2,2768.0,0.1804]
[1643802456931,0.74938904,2768.9,2768.1,0.32295838]
[1643802457636,0.0027501,2769.2,2768.1,0.32295838]
[1643802458440,0.0027501,2769.2,2768.7,0.39470726]
[1643802458638,0.98424386,2769.3,2768.2,0.1804]
[1643802459037,0.80384386,2769.3,2768.2,0.1804]
[1643802459488,1.53169244,2769.2,2768.2,0.1804]
[1643802459688,1.53169244,2769.2,2768.2,0.51922188]
[1643802459689,0.0027501,2769.1,2768.2,0.51922188]
[1643802460294,0.76256057,2768.8,2768.2,0.51922188]
[1643802460490,0.0027501,2769.1,2768.2,0.51922188]
[1643802460691,0.0027501,2769.3,2768.2,0.51922188]
[1643802461093,1.53449846,2769.3,2768.2,0.51922188]
[1643802461291,1.53174836,2769.2,2768.2,0.51922188]
[1643802461493,1.53174836,2769.1,2768.2,0.51922188]
[1643802461691,0.1831501,2769.5,2768.2,0.51922188]
[1643802461890,0.74576344,2769.1,2768.3,1.96165823]
[1643802462091,0.74576344,2769.1,2768.2,0.33882188]
[1643802462492,0.74479074,2769.1,2768.2,0.33882188]
[1643802462693,0.74479074,2769.1,2768.3,1.92644249]
[1643802462935,0.74479074,2769.1,2768.2,0.33882188]
[1643802463737,0.0027501,2769.3,2768.7,0.37514196]
[1643802463937,0.0027501,2769.3,2768.3,1.88545181]
[1643802464140,0.1831501,2769.3,2768.3,1.88545181]
[1643802464338,1.53166479,2769.2,2768.3,1.88545181]
[1643802464742,1.53166479,2769.1,2768.1,3.08334]
[1643802464953,0.80487121,2768.9,2768.1,2.1804]
[1643802465139,0.80487121,2768.9,2768.3,0.43545385]
[1643802465342,0.1831501,2769.5,2768.3,0.43545385]
[1643802465544,1.53177584,2769.4,2768.3,0.43545385]
[1643802465739,0.1831501,2769.3,2768.3,0.43545385]
[1643802465940,1.53177584,2769.2,2768.3,0.43545385]
[1643802466342,0.92966038,2769.2,2768.3,0.43545385]
[1643802466542,1.53177584,2769.1,2768.3,0.43545385]
[1643802468500,1.53177584,2769.1,2768.1,0.1804]
[1643802469902,1.53177584,2769.1,2768.4,0.36124488]
[1643802470102,1.53177584,2769.1,2768.1,0.1804]
[1643802470304,0.78189961,2768.7,2768.1,0.1804]
[1643802470562,1.53190606,2768.6,2767.9,0.1806]
[1643802470771,1.4017,2769.2,2767.9,1.89371804]
[1643802470971,1.53176769,2769.1,2767.9,1.89371804]
[1643802471162,0.1806,2769.0,2768.4,0.42597738]
[1643802471364,1.53176769,2768.9,2768.4,0.42597738]
[1643802471573,2.24817623,2768.9,2768.1,0.84494304]
[1643802471767,0.71640854,2768.9,2768.1,0.84494304]
[1643802472167,0.71640854,2768.9,2768.2,1.88063562]
[1643802472368,0.71640854,2768.9,2768.2,1.92900302]
[1643802472568,0.71640854,2768.9,2768.4,0.43141069]
[1643802472786,0.1806,2769.2,2768.4,0.43141069]
[1643802472968,1.5317118,2769.1,2768.4,0.43141069]
[1643802473374,1.5317118,2769.0,2768.4,0.43141069]
[1643802473569,1.5344619,2769.3,2768.4,0.43141069]
[1643802473870,0.1804,2769.2,2768.4,0.43141069]
[1643802474070,1.5317118,2769.1,2768.4,0.43141069]
[1643802474283,2.34253618,2769.0,2768.4,0.43141069]
[1643802474485,1.5317118,2768.9,2768.2,2.05668865]
[1643802475088,0.0027501,2769.3,2768.2,2.05668865]
[1643802475292,0.0027501,2769.3,2768.2,2.06869013]
[1643802475496,1.53444705,2769.3,2768.8,0.37795801]
[1643802475690,1.53169695,2769.2,2768.5,0.523]
[1643802475895,0.1831501,2769.5,2768.6,2.81930454]
[1643802475896,1.05722453,2769.5,2768.6,2.81930454]
[1643802476090,1.53155201,2769.4,2768.6,2.81930454]
[1643802476291,1.53155201,2769.4,2768.6,2.92599619]
[1643802476693,1.53155201,2769.4,2768.6,0.1804]
[1643802476897,1.53155201,2769.4,2768.5,0.1804]
[1643802477193,0.0027501,2769.3,2768.5,0.1804]
[1643802477794,0.0027501,2769.3,2768.6,0.67892843]
[1643802478233,0.0027501,2769.3,2768.9,0.42468253]
[1643802478447,1.53155201,2769.4,2768.9,0.42468253]
[1643802478635,1.53155201,2769.5,2769.0,1.88651685]
[1643802479835,1.53155201,2769.5,2769.1,0.83153964]
[1643802480535,1.53155201,2769.5,2768.9,0.42468253]
[1643802480739,1.53155201,2769.5,2768.6,3.4061]
[1643802481779,1.53155201,2769.5,2768.9,0.40130384]
[1643802485435,1.53155201,2769.5,2769.0,1.89486598]
[1643802486036,1.53066969,2769.5,2769.4,0.33860428]
[1643802486239,0.1804,2769.8,2769.4,2.30755915]
[1643802486240,0.0027501,2769.8,2769.4,2.30755915]
[1643802486835,0.1831501,2770.2,2769.4,2.30755915]
[1643802487039,0.1831501,2770.2,2769.9,0.36548872]
[1643802487240,0.0027501,2770.2,2770.0,1.98688271]
[1643802487441,0.1804,2770.5,2769.9,0.36548872]
[1643802487442,0.1831501,2770.5,2769.9,0.36548872]
[1643802487642,0.0027501,2770.5,2769.9,0.36548872]
[1643802488042,0.1831501,2770.7,2769.9,0.36548872]
[1643802488242,0.86726407,2770.7,2769.9,0.36548872]
[1643802489050,0.1831501,2770.7,2769.9,0.36548872]
[1643802489895,0.1831501,2770.7,2769.4,2.31033]
[1643802490085,0.68411397,2770.5,2769.4,1.4078]
[1643802490280,0.1831501,2770.4,2769.4,0.1804]
[1643802490882,1.85409506,2770.4,2769.4,0.60201425]
[1643802491081,0.86726407,2770.4,2769.4,1.43296295]
[1643802491281,0.1831501,2770.4,2769.4,1.43296295]
[1643802492482,0.7549915,2770.3,2769.4,1.25256295]
[1643802494756,0.7549915,2770.3,2769.3,0.25]
[1643802494954,0.0027501,2770.2,2769.2,0.1804]
[1643802495253,0.0027501,2770.2,2769.2,2.04396932]
[1643802495855,0.0027501,2770.2,2769.3,1.08985443]
[1643802496054,0.1831501,2770.2,2769.3,1.08985443]
[1643802496981,0.1831501,2770.2,2769.4,1.85486211]
[1643802497282,0.0027501,2770.2,2769.4,1.85486211]
[1643802497492,0.1831501,2770.6,2769.8,0.3467302]
[1643802497687,0.1831501,2770.6,2769.4,1.85486211]
[1643802497890,0.67789749,2770.4,2769.4,1.85486211]
[1643802498088,0.0027501,2770.3,2769.3,1.64471246]
[1643802499089,0.0027501,2770.3,2769.2,0.1804]
[1643802500431,0.1831501,2770.3,2769.4,0.79799028]
[1643802500835,0.1831501,2770.3,2769.4,2.67354256]
[1643802501231,0.1831501,2770.3,2769.4,0.79799028]
[1643802501840,0.0027501,2770.3,2769.4,0.79799028]
[1643802502533,0.0027501,2770.3,2769.8,0.31875954]
[1643802502736,0.1831501,2770.5,2769.8,0.31875954]
[1643802503141,0.1804,2770.5,2769.8,0.31875954]
[1643802503741,0.86848154,2770.5,2769.4,1.70059028]
[1643802503941,0.0027501,2770.4,2769.4,1.70059028]
[1643802504778,0.0027501,2770.4,2769.9,0.31782544]
[1643802504978,0.1804,2770.6,2769.9,0.31782544]
[1643802505180,0.1804,2770.6,2769.5,3.00070177]
[1643802505380,0.1804,2770.6,2769.6,0.91477481]
[1643802505578,0.0027501,2770.5,2769.7,1.86693847]
[1643802505777,0.0027501,2770.5,2770.2,0.67508915]
[1643802505977,0.0027501,2770.5,2770.1,0.72270904]
[1643802506177,1.533765,2770.6,2770.1,0.72270904]
[1643802506983,1.533765,2770.6,2769.9,0.348401]
[1643802507379,1.533765,2770.6,2769.6,2.81178415]
[1643802507680,1.5310149,2770.5,2769.7,0.1804]
[1643802507936,1.5310149,2770.4,2769.5,1.1415]
[1643802508139,0.1831501,2770.6,2769.5,1.1415]
[1643802508140,0.7969512,2770.2,2769.5,1.1415]
[1643802508341,1.5310149,2770.1,2769.4,1.09093992]
[1643802508538,1.5310149,2770.1,2769.4,0.91053992]
[1643802508939,1.5310149,2770.1,2769.3,1.98552]
[1643802509139,1.5310149,2770.1,2769.3,1.80512]
[1643802509740,1.5310149,2770.1,2769.2,0.1804]
[1643802510143,1.61129214,2770.1,2769.2,0.1804]
[1643802510339,1.5310149,2770.0,2769.2,0.1804]
[1643802511440,1.5310149,2770.0,2769.3,0.90265]
[1643802511682,1.5310149,2769.9,2769.3,0.90265]
[1643802511884,1.5310149,2769.8,2769.3,0.90265]
[1643802512283,1.5310149,2770.1,2769.3,0.90265]
[1643802512485,1.5311738,2770.0,2769.3,0.90265]
[1643802512687,1.5311738,2769.9,2769.3,0.90265]
[1643802512889,1.5311738,2769.8,2769.3,0.90265]
[1643802513089,1.5311738,2769.7,2769.3,0.90265]
[1643802513289,0.7969512,2770.2,2769.3,0.90265]
[1643802513490,1.53117759,2770.1,2769.3,0.90265]
[1643802513691,1.53117759,2770.1,2769.1,7.1042643]
[1643802513891,1.53117759,2770.1,2769.1,4.519]
[1643802514096,3.25936623,2770.0,2769.1,0.1804]
[1643802514393,2.71157759,2769.9,2768.8,0.3035]
[1643802514597,4.05417759,2769.8,2768.8,0.3035]
[1643802514794,2.71157759,2769.7,2768.8,0.3035]
[1643802514992,0.85019337,2769.3,2768.8,0.3035]
[1643802515192,1.53117759,2769.2,2768.8,0.3035]
[1643802515431,1.53117759,2769.2,2768.8,0.30223683]
[1643802516635,3.4514023,2769.2,2768.8,0.30223683]
[1643802516834,1.53117759,2769.1,2768.8,0.30223683]
[1643802517834,2.43432759,2769.1,2768.5,1.2828]
[1643802518037,1.53117759,2769.0,2768.5,1.0328]
[1643802518237,0.83206058,2768.8,2768.5,1.0328]
[1643802518437,1.53117759,2768.7,2768.5,1.0328]
[1643802518838,1.90514956,2768.6,2768.5,1.0328]
[1643802519039,3.43632715,2768.6,2768.5,1.0328]
[1643802519483,4.43632715,2768.6,2768.5,1.0328]
[1643802519683,4.61672715,2768.6,2768.5,1.0328]
[1643802519886,5.13972715,2768.6,2768.5,1.0328]
[1643802521290,4.65,2768.5,2767.7,0.25]
[1643802521483,4.65,2768.5,2767.5,0.1804]
[1643802521484,5.22497824,2768.4,2767.5,0.1804]
[1643802521685,0.90345,2768.2,2767.5,0.1804]
[1643802522684,0.90345,2768.2,2767.4,0.39111615]
[1643802522685,0.78399184,2768.1,2767.4,0.39111615]
[1643802522932,0.90345,2768.2,2767.4,0.39111615]
[1643802523136,0.90345,2768.2,2767.3,4.82342291]
[1643802523137,1.53209838,2768.1,2767.3,4.0593]
[1643802523342,3.48552409,2768.1,2767.3,4.0593]
[1643802523537,1.95342571,2768.1,2767.3,0.1806]
[1643802523939,1.95342571,2768.1,2767.3,0.1606]
[1643802524537,0.90345,2768.2,2767.3,0.1606]
[1643802524739,0.90345,2768.2,2767.3,0.58423115]
[1643802524740,0.75769338,2767.9,2767.3,0.58423115]
[1643802524938,0.75769338,2767.9,2767.2,3.3219]
[1643802525144,0.75769338,2767.9,2767.2,0.1806]
[1643802525938,0.75769338,2767.9,2767.3,0.41177794]
[1643802526538,2.04164997,2768.2,2767.3,0.41177794]
[1643802527380,1.04164997,2768.2,2767.3,0.41177794]
[1643802527581,2.04164997,2768.2,2767.3,0.41177794]
[1643802527784,0.76083294,2767.9,2767.2,0.1806]
[1643802528886,0.76083294,2767.9,2767.1,0.1806]
[1643802533139,1.04163997,2768.2,2767.1,2.06680689]
[1643802533340,0.1806,2768.4,2767.2,0.71610573]
[1643802533539,0.13819997,2768.5,2767.3,2.1806]
[1643802533741,0.13819997,2768.5,2767.4,1.1352]
[1643802533940,0.13819997,2768.5,2767.5,2.1806]
[1643802534186,0.13819997,2768.5,2767.6,0.3]
[1643802534387,0.13819997,2768.5,2768.0,0.74913283]
[1643802537089,0.13819997,2768.5,2767.9,0.35797213]
[1643802537288,0.13819997,2768.5,2767.7,3.0956]
[1643802538148,0.13819997,2768.5,2767.7,3.84482884]
[1643802538344,0.13819997,2768.5,2767.8,0.35637868]
[1643802538949,0.13819997,2768.5,2767.7,3.84482884]